Cogmind - Beta 16 @@@ ROGUE MODE // 2025.12.11 @ 01:27:03 Player: Akamichi1342 Result: Destroyed by G-47 Trooper with Particle Gun Performance ------------- Evolutions (3) 1500 Regions Visited (7) 1400 Robots Destroyed (196) 980 Value Destroyed (7096) 7096 Prototype IDs (9) 180 Alien Tech Used (0) 0 Bonus (2072) 2072 TOTAL SCORE: 13228 Bonus ------- High Alert Combat Kills 1101 Follower Combat Kills 271 Entered Garrisons 200 Used RIF Installer 500 Cogmind --------- Core Integrity 0/700 Matter 232/300 Energy 140/140 System Corruption 4% Temperature Cool (9) Movement Rolling (110) Ox1 Location -7/Lower Caves Parts ------- > --- POWER (1) -------- Light Deuterium Engine > --- PROPULSION (3) --- Armored Wheel Armored Huge Wheel > --- UTILITY (6) ------ Large Storage Unit Heavy Armor Plating > --- WEAPON (3) ------- Improved EM Pulse Cannon Plasma Cannon Gauss Cannon > --- INVENTORY (15) --- Improved Medium Armor Plating Authchip [R/Combat] Mini Grenade Launcher Makeshift Spear Peak State ------------ > --- POWER ------------ Heavy Antimatter Reactor > --- PROPULSION ------- (None) > --- UTILITY ---------- Improved Heat Sink Huge Storage Unit Improved Medium Armor Plating Improved Medium Armor Plating Relay Coupler [NC] > --- WEAPON ----------- Heavy Wave Gun Heavy Wave Gun Heavy Wave Gun > --- INVENTORY -------- Cryofiber Web Improved Medium Armor Plating Improved Medium Armor Plating Authchip [R/Combat] Authchip [R/Combat] Authchip [R/Combat] Authchip [R/Combat] Authchip [R/Combat] Authchip [R/Combat] Authchip [R/Combat] Authchip [R/Combat] Relay Coupler [NC] Heavy Wave Gun Heavy Wave Gun Advanced Beam Cannon Advanced Beam Cannon Antimatter Cannon Antimatter Cannon Mini Grenade Launcher Mini Grenade Launcher Remote Datajack PL-3XN's Ring of Power [Rating: 54] Favorites ----------- Power Light Ion Engine Engine Light Ion Engine Power Core Light Nuclear Core Reactor Heavy Antimatter Reactor Propulsion Compact Wheel Wheel Compact Wheel Flight Unit Makeshift Flight Unit Utility Hacking Suite Device Improved Heat Sink Storage Huge Storage Unit Processor Improved Targeting Computer Hackware Hacking Suite Protection Medium Armor Plating Weapon Advanced Beam Cannon Energy Gun Small Laser Energy Cannon Advanced Beam Cannon Ballistic Gun Assault Rifle Ballistic Cannon Light Cannon Launcher Mini Grenade Launcher Special Weapon Remote Datajack Piercing Weapon Makeshift Spear Special Melee Weapon Datajack Build | -11 -10 -9 -8 -8 -7 -7 -7 ------- Run | Yrd Mat Mat Mat Gar Fac Low Low Slots Evolved 6 | . . 2 2 . 2 . . Power . | . . . . . . . . Propulsion 1 | . . . . . 1 . . Utility 4 | . . 1 2 . 1 . . Weapon 1 | . . 1 . . . . . Parts Attached 126 | 7 11 25 13 22 38 2 8 Power 16 | 1 3 3 1 2 5 1 . Engine 10 | 1 2 3 1 1 1 1 . Core 5 | . 1 . . 1 3 . . Reactor 1 | . . . . . 1 . . Propulsion 28 | 2 3 8 1 2 9 1 2 Treads . | . . . . . . . . Leg . | . . . . . . . . Wheel 27 | 2 3 8 1 2 9 . 2 Hover . | . . . . . . . . Flight 1 | . . . . . . 1 . Utility 35 | 1 1 4 8 8 11 . 2 Device 9 | . . 2 1 4 2 . . Storage 5 | 1 1 1 1 . . . 1 Processor 2 | . . . 1 1 . . . Hackware 9 | . . . 3 1 5 . . Protection 10 | . . 1 2 2 4 . 1 Artifact . | . . . . . . . . Weapon 47 | 3 4 10 3 10 13 . 4 Energy Gun 10 | 1 1 2 . . 6 . . Energy Cannon 12 | . . 5 1 2 2 . 2 Ballistic Gun 6 | 2 1 1 1 1 . . . Ballistic Cannon 3 | . 1 1 . . . . 1 Launcher 13 | . 1 1 1 6 4 . . Special Weapon 1 | . . . . . 1 . . Impact Weapon . | . . . . . . . . Slashing Weapon . | . . . . . . . . Piercing Weapon 1 | . . . . . . . 1 Special Melee Weapon 1 | . . . . 1 . . . Unidentified Prototypes 9 | . . 2 1 . 6 . . Parts Lost 58 | . 2 9 1 18 28 . . Power 7 | . 1 2 . 1 3 . . Propulsion 17 | . . 4 1 2 10 . . Utility 19 | . . 1 . 9 9 . . Weapon 15 | . 1 2 . 6 6 . . Highest Loss Streak 6 | . 1 3 1 5 6 . . To Critical Strikes . | . . . . . . . . Average Backups 16 | . 5 15 22 20 22 4 3 Power . | . . . . . . . . Propulsion 1 | . 2 2 2 1 . . . Utility 8 | . 1 6 9 9 15 2 1 Weapon 5 | . 1 5 9 8 6 2 2 Tool/Special . | . . . . . . . . Unused Backups 26 | . . 5 1 . 17 1 2 Power . | . . . . . . . . Propulsion 3 | . . 1 1 . 1 . . Utility 16 | . . . . . 13 1 2 Weapon 7 | . . 4 . . 3 . . Tool/Special . | . . . . . . . . Average Slot Usage (%) 80 | . 79 81 94 84 81 8 43 Engine 5 | . 8 10 9 2 . 3 7 Core 1 | . . . . 2 3 . . Wheel 17 | . 28 19 14 14 15 . 10 Device 5 | . . 7 8 7 6 . . Storage 9 | . 14 11 9 9 6 . 4 Hackware 9 | . . . 14 16 18 . . Protection 4 | . . 2 9 5 6 . 4 Energy Cannon 9 | . . 12 13 14 7 . 8 Ballistic Gun 5 | . 15 6 5 4 1 . . Ballistic Cannon 2 | . 9 6 . . . . . Launcher 4 | . . 4 8 6 6 . . Peak Build Rating 54 | 6 8 20 33 33 54 8 33 Average Rating 21 | 4 5 13 29 26 33 5 26 On Entrance 13 | . 6 7 20 32 32 1 8 Avg Prop Armor Cover (%) . | . . . . . . . . Naked Turns 214 | . . . . . 83 131 . Heaviest Build 132 | 11 28 60 114 110 132 5 56 Greatest Support 48 | 26 32 32 32 32 48 8 40 Greatest Overweight (x) 28 | . . 3 6 6 28 . 1 Average Overweight (x) 1 | . . 1 3 3 2 . . Largest Inventory Capacity 25 | 8 15 20 25 25 25 5 15 Average Capacity 19 | 7 10 18 24 25 24 5 12 Most Carried 25 | . 11 20 25 25 25 5 4 Average Carried 16 | . 5 15 22 20 22 4 3 Final Capacity 25 | 8 15 20 25 25 5 5 15 Final Carried 25 | . 10 18 24 25 5 4 4 Class Distribution -------------------- 27% | Mutant 17% | Scavenger-Gunner 14% | Hacker-Tank 13% | Scavenger-Tank 10% | Gunner 7% | Tank Dominant Class ---------------- Mutant | -10/Materials Gunner | -9/Materials Hacker-Tank | -8/Materials Hacker-Tank | -8/Garrison Scavenger-Gunner | -7/Factory Mutant | -7/Lower Caves Derelict-Mutant | -7/Lower Caves Resources | -11 -10 -9 -8 -8 -7 -7 -7 ----------- Run | Yrd Mat Mat Mat Gar Fac Low Low Matter Collected 3658 | 226 515 807 270 795 804 108 133 Remotely . | . . . . . . . . Salvage Created 6798 | . 944 1687 736 966 2465 . . Parts 341 | . 55 94 38 36 118 . . Haulers Intercepted 10 | . 1 4 3 . 2 . . Recyclers Shooed 9 | . 1 3 2 . 3 . . Parts Field Recycled . | . . . . . . . . Retrieved Matter . | . . . . . . . . Parts Self-Destructed . | . . . . . . . . Prevented . | . . . . . . . . Parts Restored . | . . . . . . . . Kills | -11 -10 -9 -8 -8 -7 -7 -7 ------- Run | Yrd Mat Mat Mat Gar Fac Low Low Combat Hostiles Destroyed 135 | . 17 32 11 27 48 . . Guns 15 | . 7 2 . 2 4 . . Cannons 51 | . 7 14 10 10 10 . . AOE 67 | . 3 16 1 14 33 . . Classes Destroyed 16 | . 7 3 1 . 5 . . Worker 9 | . 1 . 1 . 7 . . Builder 9 | . . 4 . . 5 . . Hauler 11 | . 1 4 3 . 3 . . Recycler 22 | . 4 7 2 . 9 . . Mechanic 2 | . . . . . 2 . . Operator 4 | . 3 1 . . . . . Watcher 4 | . 1 2 . . 1 . . Swarmer 22 | . 3 7 4 . 8 . . Grunt 74 | . 14 15 1 19 25 . . Duelist 1 | . . 1 . . . . . Protector 2 | . . . . . 2 . . Sentry 19 | . . 9 4 6 . . . Specialist 4 | . . . . . 4 . . Hunter 9 | . . . 2 2 5 . . Programmer 3 | . . . . . 3 . . Heavy 1 | . . . . . 1 . . Best Kill Streak 16 | . 4 12 7 5 16 . . Combat Bots Only 12 | . 4 7 5 5 12 . . Max Kills in Single Turn 5 | . 3 3 2 2 5 . . Gunslinging . | . . . . . . . . Exploded 4 | . 3 2 1 2 4 . . Melee . | . . . . . . . . Uniques/NPCs Destroyed . | . . . . . . . . Combat | -11 -10 -9 -8 -8 -7 -7 -7 -------- Run | Yrd Mat Mat Mat Gar Fac Low Low Hostile Shots Fired 658 | . 48 124 39 134 305 1 7 Missed 214 | . 10 34 12 37 120 . 1 Hits 444 | . 38 90 27 97 185 1 6 Melee 1 | . . . . 1 . . . Projectile 443 | . 38 90 27 96 185 1 6 Critical Strikes 14 | . . 1 . 4 9 . . Damage Taken 7805 | . 525 1455 424 1994 3290 18 99 Core 1467 | . 90 238 49 385 672 18 15 Absorbed by Shields 74 | . . . . 74 . . . Regen/Repaired (Parts) 85 | . . 85 . . . . . Core Remaining (%) 56 | 100 64 40 . 21 . . . Volleys Fired 423 | . 80 84 35 92 129 . 3 Largest 3 | . 2 3 3 3 3 . 2 Hottest 264 | . 70 136 173 211 264 . 149 Shots Fired 802 | . 150 182 89 182 193 . 6 Gun 270 | . 114 42 22 31 61 . . Cannon 415 | . 35 117 64 119 74 . 6 Launcher 108 | . 1 23 3 32 49 . . Special 9 | . . . . . 9 . . Kinetic 289 | . 137 78 22 31 21 . . Thermal 393 | . 12 81 64 119 114 . 3 Explosive 108 | . 1 23 3 32 49 . . Electromagnetic 3 | . . . . . . . 3 Robot Hit Streak 21 | . 13 21 13 16 18 . 2 Robot Miss Streak 6 | . 2 5 6 4 4 . 2 Penetration Max 1 | . . . . . 1 . . Secondary Targets . | . . . . . . . . Shots Hit Robots 483 | . 107 110 48 99 116 . 3 Core Hits 351 | . 48 73 22 56 151 . 1 Critical Kills 3 | . 1 . . 1 1 . . Critical Parts Destroyed . | . . . . . . . . Critical Strikes 9 | . 2 1 . 1 5 . . Burn 4 | . . . . . 4 . . Meltdown 1 | . . . . . 1 . . Destroy 2 | . 1 . . 1 . . . Blast 2 | . 1 1 . . . . . Melee Attacks 1 | . . . . 1 . . . Impact . | . . . . . . . . Slashing . | . . . . . . . . Piercing . | . . . . . . . . Sneak Attacks . | . . . . . . . . Combat Hostiles . | . . . . . . . . Follow-up Attacks . | . . . . . . . . Damage Inflicted 17377 | . 1510 3494 1218 3888 7186 . 81 Guns 2730 | . 922 312 155 349 992 . . Cannons 5398 | . 392 1539 953 1339 1094 . 81 Explosions 9231 | . 196 1643 92 2200 5100 . . Melee . | . . . . . . . . Ramming 18 | . . . 18 . . . . Kinetic 2645 | . 1202 779 155 349 160 . . Thermal 5742 | . 112 1359 953 1339 1926 . 53 Explosive 8866 | . 118 1356 92 2200 5100 . . Electromagnetic 106 | . 78 . . . . . 28 Impact . | . . . . . . . . Slashing . | . . . . . . . . Piercing . | . . . . . . . . Highest Corruption 5 | . . 2 . 5 4 4 4 Average Corruption 3 | . . 2 . 5 3 4 4 Corruption Purged . | . . . . . . . . Corruption Blocked . | . . . . . . . . Effects 55 | . . 6 . 13 28 5 3 Message Errors 15 | . . 2 . 3 9 . 1 Matter Fused 7 | . . 1 . 2 2 2 . Heat Flow Errors 6 | . . . . 1 3 2 . Energy Discharges 8 | . . 1 . 1 4 1 1 Parts Rejected 2 | . . . . 1 1 . . Parts Fused 1 | . . . . 1 . . . Data Loss (minor) 5 | . . . . 2 3 . . Data Loss (major) 1 | . . . . . . . 1 Misfires 4 | . . 1 . 2 1 . . Alerts 2 | . . 1 . . 1 . . Weapon Failures 4 | . . . . . 4 . . Overload Shots . | . . . . . . . . Overflow Damage 345 | . 24 109 3 79 130 . . Projectiles 87 | . 3 21 3 38 22 . . Explosions 258 | . 21 88 . 41 108 . . Melee . | . . . . . . . . Knockbacks 3 | . 2 1 . . . . . Impact . | . . . . . . . . Kinetic 3 | . 2 1 . . . . . Secondary . | . . . . . . . . Self-Inflicted Damage 1154 | . 70 397 76 492 119 . . Shots 36 | . 2 12 2 16 4 . . Rammed 2 | . . . 2 . . . . Targets Rammed 2 | . . . 2 . . . . Kicked . | . . . . . . . . Crushed . | . . . . . . . . Highest Temperature 467 | . 51 467 134 408 463 265 248 Average Temperature 93 | . 14 64 49 130 107 125 133 Received Heat Transfer 2298 | . 243 360 36 672 924 9 54 Effects 7 | . . 3 . 3 1 . . Shutdowns 1 | . . . . . 1 . . Energy Bleed 2 | . . 1 . 1 . . . Interference 1 | . . 1 . . . . . Matter Decay 1 | . . . . 1 . . . Damage (minor) 2 | . . 1 . 1 . . . Siege Activations . | . . . . . . . . Martial Activations . | . . . . . . . . Shielding Activations . | . . . . . . . . Robots Disrupted . | . . . . . . . . Combat Hostiles . | . . . . . . . . Robots Corrupted . | . . . . . . . . Combat Hostiles . | . . . . . . . . Parts Fried . | . . . . . . . . Impact Corruptions . | . . . . . . . . Robots Melted 2 | . . . . 1 1 . . Combat Hostiles 2 | . . . . 1 1 . . Parts Melted 15 | . . 3 2 1 9 . . Heat Transferred 9856 | . 250 2335 1517 2161 3493 . 100 Parts Sabotaged . | . . . . . . . . Parts Stolen . | . . . . . . . . Parts Stripped . | . . . . . . . . Power Chain Reactions 2 | . 2 . . . . . . Alert | -11 -10 -9 -8 -8 -7 -7 -7 ------- Run | Yrd Mat Mat Mat Gar Fac Low Low Maximum Alert Level 4 | . . 2 1 4 4 . . Low Security (%) 32 | 100 100 35 44 5 . . . Level 1 21 | . . 33 55 22 7 . . Level 2 26 | . . 31 . 27 56 . . Level 3 14 | . . . . 27 34 . . Level 4 4 | . . . . 17 1 . . Level 5 . | . . . . . . . . High Security . | . . . . . . . . Max Security . | . . . . . . . . Peak Influence 1463 | . 167 482 287 1463 1102 . . Initial 767 | . . 26 194 131 767 . . Average 413 | . 72 246 187 713 652 . . Influence Increases 5417 | . 516 1237 435 1592 1487 135 15 Destroy 0b10 Robot/C 2860 | . 340 640 220 740 920 . . Destroy 0b10 Robot/NC 310 | . 50 90 30 . 140 . . Destroy Leader 528 | . 74 172 76 30 176 . . Allied During Kill 36 | . . . . 36 . . . Successful Hack 30 | . 10 12 8 . . . . Disable Machine 285 | . 30 165 15 15 60 . . Anti-Garrison Action 500 | . . . . 500 . . . Destroy Structure 583 | . 12 158 56 241 116 . . Partial Spotted 15 | . . . 15 . . . . Lose Combat Pursuer 270 | . . . 15 30 75 135 15 Influence Decreases 4904 | . 452 840 693 332 1851 557 179 Entered New Map 1609 | . . 38 267 72 696 407 129 Time Decay 2190 | . 432 562 416 . 580 150 50 Lost Part 580 | . 20 90 10 180 280 . . Lost Ally 100 | . . . . 80 20 . . Purge Threat 425 | . . 150 . . 275 . . Squads Dispatched 17 | . 3 2 . . 12 . . Investigation 1 | . . 1 . . . . . Extermination 3 | . . . . . 3 . . Reinforcement 12 | . 3 1 . . 8 . . Assault 1 | . . . . . 1 . . Garrison . | . . . . . . . . Intercept . | . . . . . . . . Searches Triggered . | . . . . . . . . Construction Impeded 3 | . . . . . 3 . . Haulers Reinforced 1 | . . . . . 1 . . Active Scanning Responses . | . . . . . . . . Cargo Convoy Interrupts 1 | . . . . . 1 . . Stealth | -11 -10 -9 -8 -8 -7 -7 -7 --------- Run | Yrd Mat Mat Mat Gar Fac Low Low Distress Signals 11 | . 3 3 2 2 1 . . Communications Jammed . | . . . . . . . . Distress Signals . | . . . . . . . . Times Spotted 207 | . 35 39 20 38 67 5 3 Peak Tracking Total 11 | . 4 5 5 6 11 4 3 Tactical Retreats 8 | . . . 1 1 2 3 1 Traps | -11 -10 -9 -8 -8 -7 -7 -7 ------- Run | Yrd Mat Mat Mat Gar Fac Low Low Traps Triggered 11 | . . 1 . 8 2 . . Indirectly . | . . . . . . . . Trap Hack Attempts . | . . . . . . . . Triggered . | . . . . . . . . Disarmed . | . . . . . . . . Reprogrammed . | . . . . . . . . Reused . | . . . . . . . . Traps Extracted . | . . . . . . . . Installed . | . . . . . . . . Triggered . | . . . . . . . . Machines | -11 -10 -9 -8 -8 -7 -7 -7 ---------- Run | Yrd Mat Mat Mat Gar Fac Low Low Machines Disabled 28 | . 2 12 1 9 4 . . Max in Single Turn 2 | . 1 2 1 2 1 . . Garrison Relay 3 | . . . . 3 . . . Phase Generator 1 | . . . . 1 . . . Machines Repaired . | . . . . . . . . Machines Dismantled . | . . . . . . . . Machines Sabotaged . | . . . . . . . . Overloaded Fab Kills . | . . . . . . . . Hacking | -11 -10 -9 -8 -8 -7 -7 -7 --------- Run | Yrd Mat Mat Mat Gar Fac Low Low Machines Accessed 25 | . 6 10 6 1 2 . . Terminals 18 | . 6 6 4 1 1 . . Fabricators . | . . . . . . . . Repair Stations 2 | . . 2 . . . . . Recycling Units 2 | . . 1 . . 1 . . Scanalyzers 2 | . . 1 1 . . . . Garrison Access 1 | . . . 1 . . . . Total Hacks 56 | . 14 22 14 3 3 . . Successful 25 | . 7 9 7 1 1 . . Failed 29 | . 7 12 6 2 2 . . Catastrophic 5 | . 1 2 . . 2 . . Database Lockouts 2 | . . 1 1 . . . . Manual 33 | . 11 11 9 . 2 . . Terminals 43 | . 14 13 11 3 2 . . Fabricators . | . . . . . . . . Repair Stations 4 | . . 4 . . . . . Recycling Units 3 | . . 2 . . 1 . . Scanalyzers 5 | . . 3 2 . . . . Garrison Access 1 | . . . 1 . . . . Terminal Hacks 12 | . 5 2 4 1 . . . Robot Analysis 2 | . 2 . . . . . . Emergency Access Points 1 | . . . . 1 . . . Terminal Index 1 | . . . 1 . . . . Garrison Index 1 | . . . 1 . . . . Unreport Threat 1 | . . 1 . . . . . Locate Traps 2 | . 1 . 1 . . . . Registered Components 1 | . . 1 . . . . . Zone Layout 3 | . 2 . 1 . . . . Fabricator Hacks . | . . . . . . . . Repair Station Hacks 4 | . . 4 . . . . . Scan Component 2 | . . 2 . . . . . Repair 2 | . . 2 . . . . . Recycling Unit Hacks . | . . . . . . . . Scanalyzer 3 | . . 1 2 . . . . Retrieve Study 3 | . . 1 2 . . . . Garrison Access Hacks 1 | . . . 1 . . . . Unlock Access 1 | . . . 1 . . . . Unauthorized Hacks 5 | . 2 2 . . 1 . . Terminals 3 | . 2 1 . . . . . Botnet 1 | . 1 . . . . . . Operators 2 | . 1 1 . . . . . Fabricators . | . . . . . . . . Repair Stations . | . . . . . . . . Recycling Units 2 | . . 1 . . 1 . . Recyclers 2 | . . 1 . . 1 . . Scanalyzers . | . . . . . . . . Garrison Access . | . . . . . . . . Data Cores Recovered . | . . . . . . . . Used . | . . . . . . . . Hacking Detections 12 | . 5 4 . 1 2 . . Full Trace Events 2 | . . 1 . 1 . . . Feedback Events . | . . . . . . . . Feedback Blocked . | . . . . . . . . Robot Schematics Acquired . | . . . . . . . . Robots Built . | . . . . . . . . Authchips . | . . . . . . . . Time . | . . . . . . . . Total Robot Build Rating . | . . . . . . . . Part Schematics Acquired . | . . . . . . . . Parts Built . | . . . . . . . . Authchips . | . . . . . . . . Time . | . . . . . . . . Total Part Build Rating . | . . . . . . . . Part Studies Acquired 3 | . . 1 2 . . . . Parts Repaired 2 | . . 2 . . . . . Time 64 | . . 64 . . . . . Parts Recycled . | . . . . . . . . Recycled Matter . | . . . . . . . . Retrieved Matter . | . . . . . . . . Retrieved Components . | . . . . . . . . Parts Scanalyzed . | . . . . . . . . Part Schematics Acquired . | . . . . . . . . Parts Damaged . | . . . . . . . . Bothacking | -11 -10 -9 -8 -8 -7 -7 -7 ------------ Run | Yrd Mat Mat Mat Gar Fac Low Low Used RIF Installer 1 | . . . . 1 . . . Robots Hacked 4 | . . . . 1 3 . . Non-combat 3 | . . . . . 3 . . Combat 1 | . . . . 1 . . . Robot Hacks Applied 7 | . . . . 1 6 . . parse_system 1 | . . . . . 1 . . purge_threat 2 | . . . . . 2 . . formatsys_low 2 | . . . . . 2 . . formatsys_high 2 | . . . . 1 1 . . Relay Couplers Released 11 | . . . . 11 . . . Machine Destruction 11 | . . . . 11 . . . Attached 4 | . . . . 1 3 . . Fabnet Peak Effective % . | . . . . . . . . Robots Rewired 3 | . . . . 3 . . . Allies Hacked . | . . . . . . . . Hacks Repelled . | . . . . . . . . Allies | -11 -10 -9 -8 -8 -7 -7 -7 -------- Run | Yrd Mat Mat Mat Gar Fac Low Low Total Allies 7 | . . . . 4 3 . . Largest Group 3 | . . . . 3 1 . . Highest-Rated Group 111 | . . . . 63 111 . . Highest-Rated Ally 111 | . . . . 21 111 . . Total Orders 1 | . . . . . 1 . . DROP 1 | . . . . . 1 . . Ally Attacks 43 | . . . . 43 . . . Total Damage 864 | . . . . 864 . . . Kills 10 | . . . . 10 . . . Allies Corrupted . | . . . . . . . . Allies Melted . | . . . . . . . . Intel | -11 -10 -9 -8 -8 -7 -7 -7 ------- Run | Yrd Mat Mat Mat Gar Fac Low Low Active Infowar (turns) . | . . . . . . . . Robot Analysis Total 2 | . 2 . . . . . . Derelict Logs Recovered 2 | . . . . . . 2 . Drone Launches . | . . . . . . . . Drone Recoveries . | . . . . . . . . Exploration | -11 -10 -9 -8 -8 -7 -7 -7 ------------- Run | Yrd Mat Mat Mat Gar Fac Low Low Turns Passed 8216 | 63 1305 1748 1009 1886 1782 314 109 Spaces Moved 5125 | 61 910 1031 498 970 999 568 88 Core 438 | 6 . . . . 172 260 . Treads . | . . . . . . . . Legs . | . . . . . . . . Wheels 4344 | 55 910 1031 498 970 827 . 53 Hover . | . . . . . . . . Flight 343 | . . . . . . 308 35 Fastest Speed 50 | 50 90 100 115 120 50 50 55 Average Speed 114 | 86 98 116 146 141 126 52 87 Slowest Speed 1450 | 100 100 145 180 180 1450 55 110 Overloaded Moves . | . . . . . . . . Propulsion Burnouts . | . . . . . . . . Robots Hopped 1 | . . . . . . 1 . Potential Cave-ins . | . . . . . . . . Cave-ins Triggered . | . . . . . . . . Exploration Rate (%) 53 | 4 99 80 40 95 27 73 10 Regions Visited 7 Branch Regions 2 Pre-discovered Areas 1 | . . . . . . 1 . Known Exits Taken 1 | . . . 1 . . . . Unknown Exits Taken 5 | 1 1 1 . . 1 1 . Scrap Searched 5 | . . . . . . 2 3 Spaces Dug 7 | . . . . . 7 . . Terrain Destroyed 614 | . 11 160 58 250 135 . . Melee . | . . . . . . . . Projectile 16 | . . 1 12 . 3 . . AOE 598 | . 11 159 46 250 132 . . Terrain Rammed . | . . . . . . . . Walls Destroyed . | . . . . . . . . Machines Disabled . | . . . . . . . . Actions | -11 -10 -9 -8 -8 -7 -7 -7 --------- Run | Yrd Mat Mat Mat Gar Fac Low Low Total 6732 | 67 1177 1426 715 1329 1326 581 111 Wait 818 | . 158 237 143 152 109 10 9 Move 5117 | 60 909 1030 498 969 998 565 88 Hop 1 | . . . . . . 1 . Pick Up 84 | . 11 22 11 18 20 1 1 Fast Attach 61 | 6 5 10 5 6 20 2 7 Attach 47 | . . 10 5 16 16 . . Detach 6 | . . 1 5 . . . . Swap 49 | 1 7 14 3 9 14 . 1 Drop 62 | . 7 18 8 5 20 2 2 Fire 423 | . 80 84 35 92 129 . 3 Melee 1 | . . . . 1 . . . Ram 2 | . . . 2 . . . . Kick . | . . . . . . . . Crush . | . . . . . . . . Escape Stasis 48 | . . . . 48 . . . Rewire 13 | . . . . 13 . . . Trap . | . . . . . . . . Miscellaneous . | . . . . . . . . Route ------- -11/Scrapyard -10/Materials (discovered 5 exits: *Mat x3 / [*Min] / [*Sub]) -9/Materials (discovered 4 exits: *Mat x2 / [*Min] / [*Sto]) -8/Materials (discovered 2 exits: *Fac / Gar) -8/Garrison (discovered 4 exits: *Fac x3 / [*Mat]) -7/Factory -7/Lower Caves -7/Lower Caves History --------- Turn | Location | Event 10 | -11/Scrapyard | Discovered new exit (range 15) 64 | -11/Scrapyard | Entered Materials 312 | -10/Materials | Build established: Mutant 468 | -10/Materials | Discovered new exit (range 13) 494 | -10/Materials | Discovered new exit (range 12) 1004 | -10/Materials | Discovered new exit (range 15) 1182 | -10/Materials | Discovered new exit (range 10) 1307 | -10/Materials | Discovered new exit (range 7) 1369 | -10/Materials | Entered another Materials area 1369 | -9/Materials | Evolved 2 slots: Utility x1, Weapon x1 1646 | -9/Materials | Destroyed 7 combat bots 1693 | -9/Materials | Discovered new exit (range 16) 1742 | -9/Materials | Build established: Gunner 1744 | -9/Materials | Central database locked down 1751 | -9/Materials | Discovered new exit (range 14) 2556 | -9/Materials | Lost 3 parts (1p1n1w) 2576 | -9/Materials | Discovered new exit (range 12) 2580 | -9/Materials | Core integrity fell below 50% 2694 | -9/Materials | Repaired Imp. Heat Sink 2829 | -9/Materials | Build established: Mutant 3059 | -9/Materials | Discovered new exit (range 11) 3099 | -9/Materials | Repaired Grenade Launcher 3117 | -9/Materials | Entered another Materials area 3117 | -8/Materials | Evolved 2 slots: Utility x2 3820 | -8/Materials | Central database locked down 3856 | -8/Materials | Discovered new exit (range 15) 3864 | -8/Materials | Build established: Hacker-Tank 4126 | -8/Materials | Identified exit to Garrison 4126 | -8/Materials | Entered Garrison 4208 | -8/Garrison | Triggered checkpoint 4225 | -8/Garrison | Garrison Relay disabled 4378 | -8/Garrison | Triggered checkpoint 4448 | -8/Garrison | Discovered new exit (range 5) 4501 | -8/Garrison | Lost 4 parts (1p1n1u1w) 4578 | -8/Garrison | Triggered checkpoint 4880 | -8/Garrison | Triggered checkpoint 4960 | -8/Garrison | Triggered checkpoint 5037 | -8/Garrison | Core integrity fell below 50% 5067 | -8/Garrison | Lost 5 parts (1n2u2w) 5080 | -8/Garrison | Discovered new exit (range 12) 5134 | -8/Garrison | Installed Relay Interface Framework 5168 | -8/Garrison | Phase Generator disabled 5364 | -8/Garrison | Triggered checkpoint 5406 | -8/Garrison | Garrison Relay disabled 5454 | -8/Garrison | Discovered new exit (range 14) 5728 | -8/Garrison | Triggered checkpoint 5843 | -8/Garrison | Discovered new exit (range 9) 5866 | -8/Garrison | Triggered checkpoint 5967 | -8/Garrison | Garrison Relay disabled 6012 | -8/Garrison | Entered Factory 6012 | -7/Factory | Evolved 2 slots: Propulsion x1, Utility x1 6273 | -7/Factory | Build established: Scavenger-Tank 6732 | -7/Factory | Build established: Scavenger-Gunner 6746 | -7/Factory | Found Prototype Launcher 6746 | -7/Factory | Identified Rocket Array 6812 | -7/Factory | First assault squad dispatched 6955 | -7/Factory | Destroyed 8 combat bots 6960 | -7/Factory | Lost 3 parts (2n1w) 7097 | -7/Factory | Core integrity fell below 50% 7123 | -7/Factory | Lost 6 parts (1p1n1u3w) 7320 | -7/Factory | Cargo convoy interrupted 7357 | -7/Factory | Destroyed 12 combat bots 7365 | -7/Factory | Lost 6 parts (1p2n2u1w) 7493 | -7/Factory | Found PL-3XN's Ring of Power 7672 | -7/Factory | Core integrity fell below 20% 7690 | -7/Factory | Build established: Tank 7711 | -7/Factory | Released all parts (6) 7787 | -7/Factory | Discovered new exit (range 13) 7794 | -7/Factory | Entered Lower Caves 7897 | -7/Lower Caves | Encountered a Warlord checkpoint 7969 | -7/Lower Caves | Discovered new exit (range 12) 7971 | -7/Lower Caves | Learned location of 2 exits from Factory 8016 | -7/Lower Caves | Build established: Mutant 8108 | -7/Lower Caves | Entered another Lower Caves area 8217 | -7/Lower Caves | Destroyed by G-47 Trooper with Particle Gun Last Messages --------------- 08123_ Found Lgt. Deuterium Engine. 08123_ Found 34 Matter. 08124_ Acquired 34 matter. 08124_ Acquired 40 matter. 08127_ Acquired Mak. Spear. 08129_ Dropped Authchip [R/Combat]. 08130_ Acquired Arm. Huge Wheel. 08131_ Dropped Mak. Flight Unit. 08134_ Acquired Arm. Wheel. 08136_ Acquired Unknown Storage. 08136_ Identified Lrg. Storage Unit. 08140_ Acquired Hvy. Armor Plating. 08141_ Acquired 12 matter. 08148_ Acquired Plasma Cannon. 08150_ Acquired Imp. EM Pulse Cannon. 08156_